{"text_format":"1","workbook":"xlsx","n_sheets":8,"sheets":["I.","II.","III.","IV.","V.","VI.","obl","zav"],"not_rendered":{"charts":0,"images":0,"macros":1,"external_links":0,"defined_names":1,"comments":0,"pivot_tables":0},"unopened":[],"bounds":{"document_bytes":16777216,"sheet_cells":100000,"rows_first":2000,"rows_last":500,"rows_between":2000,"halvings":0,"cell_chars":16384,"cell_head_chars":4096},"cells_cut":0,"cells_raw":0,"read":"whole","date_system":"1900"}

{"sheet":"I.","index":0,"n_rows":27,"n_cols":12,"rows_kept":27,"cut":false,"hidden":false,"merged":[[1,2,1,4],[2,2,2,8],[1,6,1,9],[6,1,6,7],[10,4,10,5],[10,3,11,3],[10,2,11,2],[10,1,11,1],[10,8,11,8],[10,6,11,6],[10,9,11,9]]}
[null,null,null,null,null,null,null,null,null,null,null,"Приложение №1"]
[{"$f":"IF(ISNA(VLOOKUP(C2,obl!A1:B28,2,FALSE))=TRUE,\"\",(VLOOKUP(C2,obl!A1:B28,2,FALSE)))","v":"05"},"Област","05 Видин                ",null,null,null,{"$f":"IF(MID(C2,1,2)=MID(C3,1,2),\"\",\"избери заведение с код от същата област \")","v":"избери заведение с код от същата област "},null,null,null,null,"към формуляр 365-О"]
[{"$f":"IF(ISNA(VLOOKUP(C3,zav!B1:C226,2,FALSE))=TRUE,\"\",(VLOOKUP(C3,zav!B1:C226,2,FALSE)))","v":""},"Лечебно заведение"]
[null,"Година на обработка",2023]
[]
[]
[null,"ДЕЙНОСТ НА ЛЕКАРИТЕ ПО ДЕНТАЛНА МЕДИЦИНА"]
[]
[1,"1. Терапевтична дейност"]
[null,null,null,null,null,null,null,null,"ХОРИЗОНТАЛЕН КОНТРОЛ:"]
[null,null,"Ши-фър","Всичко","от тях деца до 17 години",null,"Бременни и кърмещи жени",null,"к.1³ к.2+ к.3+к.4"]
[null,null,null,null,"постоянни зъби","временни зъби"]
[null,"а","б",1,2,3,4]
[null,"Излекувани зъби с: Кариес                      ","01",null,null,null,null,null,{"$f":"IF(D14<E14+F14+G14,\"грешка\",\"\")","v":""}]
[null," Пулпит","02",null,null,null,null,null,{"$f":"IF(D15<E15+F15+G15,\"грешка\",\"\")","v":""}]
[null," Периодонтит","03",null,null,null,null,null,""]
[null,"Излекувани зъби - общо","04",null,null,null,null,null,""]
[null,"от тях: излекувани с амалгама","05",null,null,null,null,null,""]
[null," излекувани с друг материал","06",null,null,null,null,null,""]
[null,"Посещения за лечение на: Лигавични заболявания","07",null,null,null,null,null,{"$f":"IF(D20<E20+F20,\"грешка\",\"\")","v":""}]
[null," Пародонтоза","08",null,null,null,null,null,""]
[null,"Лица с цялостно отстранен зъбен камък","09"]
[null,"Терапевтично санирани лица","10"]
[]
["ВЕРТИКАЛЕН КОНТРОЛ:"]
[null,"ш.04= ш.01+ш.02+ш.03",null,{"$f":"IF(D17<>D14+D15+D16,\"грешка\",\"\" )","v":""},{"$f":"IF(E17<>E14+E15+E16,\"грешка\",\"\" )","v":""},{"$f":"IF(F17<>F14+F15+F16,\"грешка\",\"\" )","v":""},{"$f":"IF(G17<>G14+G15+G16,\"грешка\",\"\" )","v":""}]
[null,"ш.04= ш.05+ш.06",null,{"$f":"IF(D17<>D18+D19,\"грешка\",\"\" )","v":""},{"$f":"IF(E17<>E18+E19,\"грешка\",\"\" )","v":""},{"$f":"IF(F17<>F18+F19,\"грешка\",\"\" )","v":""},{"$f":"IF(G17<>G18+G19,\"грешка\",\"\" )","v":""}]

{"sheet":"II.","index":1,"n_rows":16,"n_cols":7,"rows_kept":16,"cut":false,"hidden":false,"merged":[]}
[]
[{"$f":"I.!A2","v":"05"},"Област:",{"$f":"I.!C2","v":"05 Видин                "}]
[{"$f":"I.!A3","v":""},"Лечебно заведение:",{"$f":"I.!C3","v":0}]
[null,"Година:",{"$f":"I.!C4","v":2023}]
[]
[]
[]
[]
[2,"2. Хирургична дейност"]
[null,null,null,null,null,null,"ХОРИЗОНТАЛЕН КОНТРОЛ:"]
[null,null,"Ши- фър","Всичко","от тях деца до 17 г. с постоянни зъби",null,"к.1³ к.2 "]
[null,"а","б",1,2]
[null,"Екстрахирани зъби","01",null,null,null,{"$f":"IF(D13<E13,\"грешка\",\"\")","v":""}]
[null,"Инцизии на абцеси и флегмони","02",null,null,null,{"$f":"IF(D14<E14,\"грешка\",\"\")","v":""}]
[null,"Аликални остеотомии","03",null,null,null,""]
[null,"Хирургично санирани лица","04",null,null,null,""]

{"sheet":"III.","index":2,"n_rows":22,"n_cols":4,"rows_kept":22,"cut":false,"hidden":false,"merged":[]}
[]
[{"$f":"I.!A2","v":"05"},"Област:",{"$f":"I.!C2","v":"05 Видин                "}]
[{"$f":"I.!A3","v":""},"Лечебно заведение:",{"$f":"I.!C3","v":0}]
[null,"Година:",{"$f":"I.!C4","v":2023}]
[]
[]
[]
[]
[3,"3. Протетична дейност"]
[]
[null,null,"Ши-фър","Брой"]
[null,"а","б",1]
[null,"Импланти","01"]
[null,"Фасети","02"]
[null,"Коронки","03"]
[null,"Мостови конструкции","04"]
[null,"Протези","05"]
[null,"от тях:  цели протези","06"]
[null,"Протетично санирани лица","07"]
[]
["ВЕРТИКАЛЕН КОНТРОЛ:"]
[null,"ш.05³ ш.06",null,{"$f":"IF(D17<D18,\"грешка\",\"\" )","v":""}]

{"sheet":"IV.","index":3,"n_rows":15,"n_cols":4,"rows_kept":15,"cut":false,"hidden":false,"merged":[]}
[]
[{"$f":"I.!A2","v":"05"},"Област:",{"$f":"I.!C2","v":"05 Видин                "}]
[{"$f":"I.!A3","v":""},"Лечебно заведение:",{"$f":"I.!C3","v":0}]
[null,"Година:",{"$f":"I.!C4","v":2023}]
[]
[]
[]
[]
[4,"4. Ортодонтска дейност"]
[]
[null,null,"Ши-фър","Брой"]
[null,"а","б",1]
[null,"Поставени брекети","01"]
[null,"Поставени апарати","02"]
[null,"Цялостно излекувани лица с ЗЧД","03"]

{"sheet":"V.","index":4,"n_rows":18,"n_cols":8,"rows_kept":18,"cut":false,"hidden":false,"merged":[[10,1,11,1],[10,2,11,2],[10,3,11,3],[10,4,10,5]]}
[]
[{"$f":"I.!A2","v":"05"},"Област:",{"$f":"I.!C2","v":"05 Видин                "}]
[{"$f":"I.!A3","v":""},"Лечебно заведение:",{"$f":"I.!C3","v":0}]
[null,"Година:",{"$f":"I.!C4","v":2023}]
[]
[]
[]
[]
[5,"5. Профилактична дейност"]
[null,null,null,null,null,null,null,"ХОРИЗОНТАЛЕН КОНТРОЛ:"]
[null,null,"Ши-фър","Всичко","от тях:",null,null,"к.1³ к.2 + к.3"]
[null,null,null,null,"Бременни и кърмещи жени","деца до 17 год."]
[null,"а","б",1,2,3]
[null,"Прегледани лица","01",null,null,null,null,{"$f":"IF(D14<E14+F14,\"грешка\",\"\")","v":""}]
[null,"от тях нуждаещи се от саниране","02",null,null,null,null,{"$f":"IF(D15<E15+F15,\"грешка\",\"\")","v":""}]
[]
["ВЕРТИКАЛЕН КОНТРОЛ:"]
[null,"ш.01³ ш.02",null,{"$f":"IF(D14<D15,\"грешка\",\"\" )","v":""},{"$f":"IF(E14<E15,\"грешка\",\"\" )","v":""},""]

{"sheet":"VI.","index":5,"n_rows":22,"n_cols":8,"rows_kept":22,"cut":false,"hidden":false,"merged":[[10,7,11,7],[19,6,19,8],[20,2,20,4],[20,6,20,8],[21,2,21,4],[21,6,21,8],[10,1,11,1],[10,2,11,2],[10,3,11,3],[10,4,10,5],[19,2,19,4]]}
[]
[{"$f":"I.!A2","v":"05"},"Област:",{"$f":"I.!C2","v":"05 Видин                "}]
[{"$f":"I.!A3","v":""},"Лечебно заведение:",{"$f":"I.!C3","v":0}]
[null,"Година:",{"$f":"I.!C4","v":2023}]
[]
[]
[]
[]
[6,"6. Цялостно санирани лица"]
[null,null,null,null,null,null,null,"ХОРИЗОНТАЛЕН КОНТРОЛ:"]
[null,null,"Ши-фър","Всичко","от тях:",null,null,"к.1³ к.2 + к.3"]
[null,null,null,null,"Бременни и кърмещи жени","деца до 17 год."]
[null,"а","б",1,2,3]
[null,"Цялостно санирани лица","01",null,null,null,null,{"$f":"IF(D14<E14+F14,\"грешка\",\"\")","v":""}]
[]
[]
[]
[]
[null,"Данни за лицето попълнило е-формуляр"]
[null,"Име и фамилия",null,null,null,null,{"$f":"IF(C20=\"\",\"попълни име и фамилия\",\"\")","v":"попълни име и фамилия"}]
[null,"телефон",null,null,null,null,{"$f":"IF(C21=\"\",\"попълни телефон\",\"\")","v":"попълни телефон"}]
[null,"е-mail",null,null,null,null,{"$f":"IF(C22=\"\",\"попълни e-mail\",\"\")","v":"попълни e-mail"}]

{"sheet":"obl","index":6,"n_rows":28,"n_cols":2,"rows_kept":28,"cut":false,"hidden":true,"merged":[]}
["01 Благоевград          ","01"]
["02 Бургас               ","02"]
["03 Варна                ","03"]
["04 Велико Търново       ","04"]
["05 Видин                ","05"]
["06 Враца                ","06"]
["07 Габрово              ","07"]
["08 Добрич               ","08"]
["09 Кърджали             ","09"]
["10 Кюстендил            ","10"]
["11 Ловеч                ","11"]
["12 Монтана              ","12"]
["13 Пазарджик            ","13"]
["14 Перник               ","14"]
["15 Плевен               ","15"]
["16 Пловдив              ","16"]
["17 Разград              ","17"]
["18 Русе                 ","18"]
["19 Силистра             ","19"]
["20 Сливен               ","20"]
["21 Смолян               ","21"]
["22 София (столица)      ","22"]
["23 София                ","23"]
["24 Стара Загора         ","24"]
["25 Търговище            ","25"]
["26 Хасково              ","26"]
["27 Шумен                ","27"]
["28 Ямбол                ","28"]

{"sheet":"zav","index":7,"n_rows":226,"n_cols":3,"rows_kept":226,"cut":false,"hidden":true,"merged":[]}
["01","01  Индивидуални практики за ПДП - Благоевград","122"]
["01","01  Групови практики за ПДП - Благоевград","142"]
["01","01  Индивидуални практики за СДП - Благоевград","222"]
["01","01  Групови практики за СДП - Благоевград","242"]
["01","01  Дентални центрове - Благоевград","262"]
["01","01  Медико-дентални центрове - Благоевград","270"]
["01","01  Диагностично-консултативни центрове - Благоевград","281"]
["01","01  Лечебни заведения за болнична помощ - Благоевград","401"]
["02","02  Индивидуални практики за ПДП - Бургас","122"]
["02","02  Групови практики за ПДП - Бургас","142"]
["02","02  Индивидуални практики за СДП - Бургас","222"]
["02","02  Групови практики за СДП - Бургас","242"]
["02","02  Дентални центрове - Бургас","262"]
["02","02  Медико-дентални центрове - Бургас","270"]
["02","02  Диагностично-консултативни центрове - Бургас","281"]
["02","02  Лечебни заведения за болнична помощ - Бургас","401"]
["03","03  Индивидуални практики за ПДП - Варна","122"]
["03","03  Групови практики за ПДП - Варна","142"]
["03","03  Индивидуални практики за СДП - Варна","222"]
["03","03  Групови практики за СДП - Варна","242"]
["03","03  Дентални центрове - Варна","262"]
["03","03  Медико-дентални центрове - Варна","270"]
["03","03  Диагностично-консултативни центрове - Варна","281"]
["03","03  Лечебни заведения за болнична помощ - Варна","401"]
["04","04  Индивидуални практики за ПДП - Велико Търново","122"]
["04","04  Групови практики за ПДП - Велико Търново","142"]
["04","04  Индивидуални практики за СДП - Велико Търново","222"]
["04","04  Групови практики за СДП - Велико Търново","242"]
["04","04  Дентални центрове - Велико Търново","262"]
["04","04  Медико-дентални центрове - Велико Търново","270"]
["04","04  Диагностично-консултативни центрове - Велико Търново","281"]
["04","04  Лечебни заведения за болнична помощ - Велико Търново","401"]
["05","05  Индивидуални практики за ПДП - Видин","122"]
["05","05  Групови практики за ПДП - Видин","142"]
["05","05  Индивидуални практики за СДП - Видин","222"]
["05","05  Групови практики за СДП - Видин","242"]
["05","05  Дентални центрове - Видин","262"]
["05","05  Медико-дентални центрове - Видин","270"]
["05","05  Диагностично-консултативни центрове - Видин","281"]
["05","05  Лечебни заведения за болнична помощ - Видин","401"]
["06","06  Индивидуални практики за ПДП - Враца","122"]
["06","06  Групови практики за ПДП - Враца","142"]
["06","06  Индивидуални практики за СДП - Враца","222"]
["06","06  Групови практики за СДП - Враца","242"]
["06","06  Дентални центрове - Враца","262"]
["06","06  Медико-дентални центрове - Враца","270"]
["06","06  Диагностично-консултативни центрове - Враца","281"]
["06","06  Лечебни заведения за болнична помощ - Враца","401"]
["07","07  Индивидуални практики за ПДП - Габрово","122"]
["07","07  Групови практики за ПДП - Габрово","142"]
["07","07  Индивидуални практики за СДП - Габрово","222"]
["07","07  Групови практики за СДП - Габрово","242"]
["07","07  Дентални центрове - Габрово","262"]
["07","07  Медико-дентални центрове - Габрово","270"]
["07","07  Диагностично-консултативни центрове - Габрово","281"]
["07","07  Лечебни заведения за болнична помощ - Габрово","401"]
["08","08  Индивидуални практики за ПДП - Добрич","122"]
["08","08  Групови практики за ПДП - Добрич","142"]
["08","08  Индивидуални практики за СДП - Добрич","222"]
["08","08  Групови практики за СДП - Добрич","242"]
["08","08  Дентални центрове - Добрич","262"]
["08","08  Медико-дентални центрове - Добрич","270"]
["08","08  Диагностично-консултативни центрове - Добрич","281"]
["08","08  Лечебни заведения за болнична помощ - Добрич","401"]
["09","09  Индивидуални практики за ПДП - Кърджали","122"]
["09","09  Групови практики за ПДП - Кърджали","142"]
["09","09  Индивидуални практики за СДП - Кърджали","222"]
["09","09  Групови практики за СДП - Кърджали","242"]
["09","09  Дентални центрове - Кърджали","262"]
["09","09  Медико-дентални центрове - Кърджали","270"]
["09","09  Диагностично-консултативни центрове - Кърджали","281"]
["09","09  Лечебни заведения за болнична помощ - Кърджали","401"]
[10,"10  Индивидуални практики за ПДП - Кюстендил","122"]
[10,"10  Групови практики за ПДП - Кюстендил","142"]
[10,"10  Индивидуални практики за СДП - Кюстендил","222"]
[10,"10  Групови практики за СДП - Кюстендил","242"]
[10,"10  Дентални центрове - Кюстендил","262"]
[10,"10  Медико-дентални центрове - Кюстендил","270"]
[10,"10  Диагностично-консултативни центрове - Кюстендил","281"]
[10,"10  Лечебни заведения за болнична помощ - Кюстендил","401"]
[11,"11  Индивидуални практики за ПДП - Ловеч","122"]
[11,"11  Групови практики за ПДП - Ловеч","142"]
[11,"11  Индивидуални практики за СДП - Ловеч","222"]
[11,"11  Групови практики за СДП - Ловеч","242"]
[11,"11  Дентални центрове - Ловеч","262"]
[11,"11  Медико-дентални центрове - Ловеч","270"]
[11,"11  Диагностично-консултативни центрове - Ловеч","281"]
[11,"11  Лечебни заведения за болнична помощ - Ловеч","401"]
[12,"12  Индивидуални практики за ПДП - Монтана","122"]
[12,"12  Групови практики за ПДП - Монтана","142"]
[12,"12  Индивидуални практики за СДП - Монтана","222"]
[12,"12  Групови практики за СДП - Монтана","242"]
[12,"12  Дентални центрове - Монтана","262"]
[12,"12  Медико-дентални центрове - Монтана","270"]
[12,"12  Диагностично-консултативни центрове - Монтана","281"]
[12,"12  Лечебни заведения за болнична помощ - Монтана","401"]
[13,"13  Индивидуални практики за ПДП - Пазарджик","122"]
[13,"13  Групови практики за ПДП - Пазарджик","142"]
[13,"13  Индивидуални практики за СДП - Пазарджик","222"]
[13,"13  Групови практики за СДП - Пазарджик","242"]
[13,"13  Дентални центрове - Пазарджик","262"]
[13,"13  Медико-дентални центрове - Пазарджик","270"]
[13,"13  Диагностично-консултативни центрове - Пазарджик","281"]
[13,"13  Лечебни заведения за болнична помощ - Пазарджик","401"]
[14,"14  Индивидуални практики за ПДП - Перник","122"]
[14,"14  Групови практики за ПДП - Перник","142"]
[14,"14  Индивидуални практики за СДП - Перник","222"]
[14,"14  Групови практики за СДП - Перник","242"]
[14,"14  Дентални центрове - Перник","262"]
[14,"14  Медико-дентални центрове - Перник","270"]
[14,"14  Диагностично-консултативни центрове - Перник","281"]
[14,"14  Лечебни заведения за болнична помощ - Перник","401"]
[15,"15  Индивидуални практики за ПДП - Плевен","122"]
[15,"15  Групови практики за ПДП - Плевен","142"]
[15,"15  Индивидуални практики за СДП - Плевен","222"]
[15,"15  Групови практики за СДП - Плевен","242"]
[15,"15  Дентални центрове - Плевен","262"]
[15,"15  Медико-дентални центрове - Плевен","270"]
[15,"15  Диагностично-консултативни центрове - Плевен","281"]
[15,"15  Лечебни заведения за болнична помощ - Плевен","401"]
[16,"16  Индивидуални практики за ПДП - Пловдив","122"]
[16,"16  Групови практики за ПДП - Пловдив","142"]
[16,"16  Индивидуални практики за СДП - Пловдив","222"]
[16,"16  Групови практики за СДП - Пловдив","242"]
[16,"16  Дентални центрове - Пловдив","262"]
[16,"16  Медико-дентални центрове - Пловдив","270"]
[16,"16  Диагностично-консултативни центрове - Пловдив","281"]
[16,"16  Факултет по дентална медицинна - Пловдив","301"]
[16,"16  Лечебни заведения за болнична помощ - Пловдив","401"]
[17,"17  Индивидуални практики за ПДП - Разград","122"]
[17,"17  Групови практики за ПДП - Разград","142"]
[17,"17  Индивидуални практики за СДП - Разград","222"]
[17,"17  Групови практики за СДП - Разград","242"]
[17,"17  Дентални центрове - Разград","262"]
[17,"17  Медико-дентални центрове - Разград","270"]
[17,"17  Диагностично-консултативни центрове - Разград","281"]
[17,"17  Лечебни заведения за болнична помощ - Разград","401"]
[18,"18  Индивидуални практики за ПДП - Русе","122"]
[18,"18  Групови практики за ПДП - Русе","142"]
[18,"18  Индивидуални практики за СДП - Русе","222"]
[18,"18  Групови практики за СДП - Русе","242"]
[18,"18  Дентални центрове - Русе","262"]
[18,"18  Медико-дентални центрове - Русе","270"]
[18,"18  Диагностично-консултативни центрове - Русе","281"]
[18,"18  Лечебни заведения за болнична помощ - Русе","401"]
[19,"19  Индивидуални практики за ПДП - Силистра","122"]
[19,"19  Групови практики за ПДП - Силистра","142"]
[19,"19  Индивидуални практики за СДП - Силистра","222"]
[19,"19  Групови практики за СДП - Силистра","242"]
[19,"19  Дентални центрове - Силистра","262"]
[19,"19  Медико-дентални центрове - Силистра","270"]
[19,"19  Диагностично-консултативни центрове - Силистра","281"]
[19,"19  Лечебни заведения за болнична помощ - Силистра","401"]
[20,"20  Индивидуални практики за ПДП - Сливен","122"]
[20,"20  Групови практики за ПДП - Сливен","142"]
[20,"20  Индивидуални практики за СДП - Сливен","222"]
[20,"20  Групови практики за СДП - Сливен","242"]
[20,"20  Дентални центрове - Сливен","262"]
[20,"20  Медико-дентални центрове - Сливен","270"]
[20,"20  Диагностично-консултативни центрове - Сливен","281"]
[20,"20  Лечебни заведения за болнична помощ - Сливен","401"]
[21,"21  Индивидуални практики за ПДП - Смолян","122"]
[21,"21  Групови практики за ПДП - Смолян","142"]
[21,"21  Индивидуални практики за СДП - Смолян","222"]
[21,"21  Групови практики за СДП - Смолян","242"]
[21,"21  Дентални центрове - Смолян","262"]
[21,"21  Медико-дентални центрове - Смолян","270"]
[21,"21  Диагностично-консултативни центрове - Смолян","281"]
[21,"21  Лечебни заведения за болнична помощ - Смолян","401"]
[22,"22  Индивидуални практики за ПДП - София (столица)","122"]
[22,"22  Групови практики за ПДП - София (столица)","142"]
[22,"22  Индивидуални практики за СДП - София (столица)","222"]
[22,"22  Групови практики за СДП - София (столица)","242"]
[22,"22  Дентални центрове - София (столица)","262"]
[22,"22  Медико-дентални центрове - София (столица)","270"]
[22,"22  Диагностично-консултативни центрове - София (столица)","281"]
[22,"22  Факултет по дентална медицинна - София (столица)","301"]
[22,"22  Лечебни заведения за болнична помощ - София (столица)","401"]
[23,"23  Индивидуални практики за ПДП - София","122"]
[23,"23  Групови практики за ПДП - София","142"]
[23,"23  Индивидуални практики за СДП - София","222"]
[23,"23  Групови практики за СДП - София","242"]
[23,"23  Дентални центрове - София","262"]
[23,"23  Медико-дентални центрове - София","270"]
[23,"23  Диагностично-консултативни центрове - София","281"]
[23,"23  Лечебни заведения за болнична помощ - София","401"]
[24,"24  Индивидуални практики за ПДП - Стара Загора","122"]
[24,"24  Групови практики за ПДП - Стара Загора","142"]
[24,"24  Индивидуални практики за СДП - Стара Загора","222"]
[24,"24  Групови практики за СДП - Стара Загора","242"]
[24,"24  Дентални центрове - Стара Загора","262"]
[24,"24  Медико-дентални центрове - Стара Загора","270"]
[24,"24  Диагностично-консултативни центрове - Стара Загора","281"]
[24,"24  Лечебни заведения за болнична помощ - Стара Загора","401"]
[25,"25  Индивидуални практики за ПДП - Търговище","122"]
[25,"25  Групови практики за ПДП - Търговище","142"]
[25,"25  Индивидуални практики за СДП - Търговище","222"]
[25,"25  Групови практики за СДП - Търговище","242"]
[25,"25  Дентални центрове - Търговище","262"]
[25,"25  Медико-дентални центрове - Търговище","270"]
[25,"25  Диагностично-консултативни центрове - Търговище","281"]
[25,"25  Лечебни заведения за болнична помощ - Търговище","401"]
[26,"26  Индивидуални практики за ПДП - Хасково","122"]
[26,"26  Групови практики за ПДП - Хасково","142"]
[26,"26  Индивидуални практики за СДП - Хасково","222"]
[26,"26  Групови практики за СДП - Хасково","242"]
[26,"26  Дентални центрове - Хасково","262"]
[26,"26  Медико-дентални центрове - Хасково","270"]
[26,"26  Диагностично-консултативни центрове - Хасково","281"]
[26,"26  Лечебни заведения за болнична помощ - Хасково","401"]
[27,"27  Индивидуални практики за ПДП - Шумен","122"]
[27,"27  Групови практики за ПДП - Шумен","142"]
[27,"27  Индивидуални практики за СДП - Шумен","222"]
[27,"27  Групови практики за СДП - Шумен","242"]
[27,"27  Дентални центрове - Шумен","262"]
[27,"27  Медико-дентални центрове - Шумен","270"]
[27,"27  Диагностично-консултативни центрове - Шумен","281"]
[27,"27  Лечебни заведения за болнична помощ - Шумен","401"]
[28,"28  Индивидуални практики за ПДП - Ямбол","122"]
[28,"28  Групови практики за ПДП - Ямбол","142"]
[28,"28  Индивидуални практики за СДП - Ямбол","222"]
[28,"28  Групови практики за СДП - Ямбол","242"]
[28,"28  Дентални центрове - Ямбол","262"]
[28,"28  Медико-дентални центрове - Ямбол","270"]
[28,"28  Диагностично-консултативни центрове - Ямбол","281"]
[28,"28  Лечебни заведения за болнична помощ - Ямбол","401"]